{"text_format":"3","workbook":"xlsx","n_sheets":6,"sheets":["FÉLÉV","KREDITEK","KÖLTSÉGVETÉS","TELJES HAVI KIADÁS","FÉLÉVI KIADÁSOK","KÖNYVEK"],"not_rendered":{"defined_names":21},"read":"whole","date_system":"1900"}

{"sheet":"FÉLÉV","index":0,"n_rows":29,"n_cols":9,"rows_kept":29,"merged":[[2,3,2,4]]}
[null,"ÓRARENDEM"]
[null,"ŐSZI FÉLÉV"]
[null,null,"KEZDÉS IDŐPONTJA","IDŐTARTAM",null,"ÉV"]
[null,null,"09:00:00",60,"(perc)"]
[null,"IDŐ ","HÉTFŐ","KEDD","SZERDA","CSÜTÖRTÖK","PÉNTEK","SZOMBAT","VASÁRNAP"]
[null,{"$f":"KezdésiIdőpont+TIME(0,(ROW(A1)-1)*Időtartam,0)","v":"09:00:00"},"Reggeli","Reggeli","Reggeli","Reggeli","Reggeli"]
[null,"10:00:00","Vállalatirányítás: Előadás B ép., 256-os sz."]
[null,"11:00:00",{"$nulls":3},"Fizika: Lab. \nJ ép., 309-es sz."]
[null,"12:00:00"]
[null,"13:00:00"]
[null,"14:00:00"]
[null,"15:00:00"]
[null,"16:00:00"]
[null,"17:00:00"]
[null,"18:00:00"]
[null,"19:00:00"]
[null,"20:00:00"]
[null,"21:00:00"]
[null,"22:00:00"]
[null,"23:00:00"]
[null,1]
[null,1.0416666666666665]
[null,1.0833333333333335]
[null,1.125]
[null,1.1666666666666665]
[null,1.2083333333333335]
[null,1.25]
[null,1.2916666666666665]
[null,1.3333333333333335]

{"sheet":"KREDITEK","index":1,"n_rows":17,"n_cols":8,"rows_kept":17}
[null,"EGYETEMI"]
[null,"KREDITTERVEZŐ"]
[null,"Diploma",{"$f":"Év","v":"ÉV"}]
[null,"ÁLTALÁNOS ÁLLAPOT",null,"ÁLTALÁNOS ÁLLAPOT"]
[null,{"$f":"AVERAGE(Kurzusok[OSZTÁLYZAT])","v":3.5},{"$f":"IFERROR(TEXT(AVERAGEIF(Kurzusok[ELVÉGEZVE?],\"Igen\",Kurzusok[OSZTÁLYZAT]),\"0,00\"),\"0,00\")&\" Aktuális tanulmányi átlag\"","v":"3,50 Aktuális tanulmányi átlag"},{"$f":"COUNTIF(Kurzusok[ELVÉGEZVE?],\"Igen\")/COUNTA(Kurzusok[KURZUS CÍME])","v":0.6666666666666666},{"$f":"TEXT(COUNTIF(Kurzusok[ELVÉGEZVE?],\"Igen\")/COUNTA(Kurzusok[KURZUS CÍME]),\"0%\")&\" kész\"","v":"67% kész"}]
[null,"Megjegyzés: Ezt a kreditösszesítőt a program automatikusan tölti ki az alábbi „Egyetemi kurzusok” táblázatban megadott bejegyzések alapján."]
[null,"KÖVETELMÉNY","ÖSSZ. KREDIT","MEGSZERZETT","SZÜKSÉGES"]
[null,"Főtantárgy",{"$f":"IF(SUMIF(Kurzusok[KÖVETELMÉNY],KREDITEK!$B8,Kurzusok[KREDITEK])=0,\"0\",SUMIF(Kurzusok[KÖVETELMÉNY],KREDITEK!$B8,Kurzusok[KREDITEK]))","v":4},{"$f":"SUMIFS(Kurzusok[KREDITEK],Kurzusok[KÖVETELMÉNY],KREDITEK!$B8,Kurzusok[ELVÉGEZVE?],\"Igen\")","v":4},{"$f":"SUMIF(Kurzusok[KÖVETELMÉNY],KREDITEK!$B8,Kurzusok[KREDITEK])-SUMIFS(Kurzusok[KREDITEK],Kurzusok[KÖVETELMÉNY],KREDITEK!$B8,Kurzusok[ELVÉGEZVE?],\"Igen\")","v":0}]
[null,"Melléktantárgy",{"$f":"IF(SUMIF(Kurzusok[KÖVETELMÉNY],KREDITEK!$B9,Kurzusok[KREDITEK])=0,\"0\",SUMIF(Kurzusok[KÖVETELMÉNY],KREDITEK!$B9,Kurzusok[KREDITEK]))","v":3},{"$f":"SUMIFS(Kurzusok[KREDITEK],Kurzusok[KÖVETELMÉNY],KREDITEK!$B9,Kurzusok[ELVÉGEZVE?],\"Igen\")","v":0},{"$f":"SUMIF(Kurzusok[KÖVETELMÉNY],KREDITEK!$B9,Kurzusok[KREDITEK])-SUMIFS(Kurzusok[KREDITEK],Kurzusok[KÖVETELMÉNY],KREDITEK!$B9,Kurzusok[ELVÉGEZVE?],\"Igen\")","v":3}]
[null,"Választható tantárgy",{"$f":"IF(SUMIF(Kurzusok[KÖVETELMÉNY],KREDITEK!$B10,Kurzusok[KREDITEK])=0,\"0\",SUMIF(Kurzusok[KÖVETELMÉNY],KREDITEK!$B10,Kurzusok[KREDITEK]))","v":2},{"$f":"SUMIFS(Kurzusok[KREDITEK],Kurzusok[KÖVETELMÉNY],KREDITEK!$B10,Kurzusok[ELVÉGEZVE?],\"Igen\")","v":2},{"$f":"SUMIF(Kurzusok[KÖVETELMÉNY],KREDITEK!$B10,Kurzusok[KREDITEK])-SUMIFS(Kurzusok[KREDITEK],Kurzusok[KÖVETELMÉNY],KREDITEK!$B10,Kurzusok[ELVÉGEZVE?],\"Igen\")","v":0}]
[null,"Általános tanulmányok",{"$f":"IF(SUMIF(Kurzusok[KÖVETELMÉNY],KREDITEK!$B11,Kurzusok[KREDITEK])=0,\"0\",SUMIF(Kurzusok[KÖVETELMÉNY],KREDITEK!$B11,Kurzusok[KREDITEK]))","v":"0"},{"$f":"SUMIFS(Kurzusok[KREDITEK],Kurzusok[KÖVETELMÉNY],KREDITEK!$B11,Kurzusok[ELVÉGEZVE?],\"Igen\")","v":0},{"$f":"SUMIF(Kurzusok[KÖVETELMÉNY],KREDITEK!$B11,Kurzusok[KREDITEK])-SUMIFS(Kurzusok[KREDITEK],Kurzusok[KÖVETELMÉNY],KREDITEK!$B11,Kurzusok[ELVÉGEZVE?],\"Igen\")","v":0}]
[null,"Összesen",{"$f":"SUBTOTAL(109,KREDITEK!$C$8:$C$11)","v":9},{"$f":"SUBTOTAL(109,KREDITEK!$D$8:$D$11)","v":6},{"$f":"SUBTOTAL(109,KREDITEK!$E$8:$E$11)","v":3}]
[null,"Kurzusok"]
[null,"KURZUS CÍME","KURZUS SZ.","KÖVETELMÉNY","KREDITEK","ELVÉGEZVE?","OSZTÁLYZAT","FÉLÉV"]
[null,"Kurzus 1","Szám","Főtantárgy",4,"Igen",{"v":4,"d":"4.0"},"1. félév"]
[null,"Kurzus 2","Szám","Melléktantárgy",3,"Nem",null,"1. félév"]
[null,"Kurzus 3","Szám","Választható tantárgy",2,"Igen",{"v":3,"d":"3.0"},"1. félév"]

{"sheet":"KÖLTSÉGVETÉS","index":2,"n_rows":15,"n_cols":4,"rows_kept":15,"merged":[[5,1,5,2]]}
[null,{"$f":"Egyetem","v":"EGYETEMI"}]
[null,"KÖLTSÉGVETÉS-NYILVÁNTARTÁS"]
[null,"SAJÁT KÖLTSÉGVETÉS",{"$f":"Év","v":"ÉV"}]
[null,"A BEVÉTEL ELKÖLTÖTT RÉSZE SZÁZALÉKBAN"]
[null,{"$f":"TELJES_HAVI_KIADÁS/TELJES_HAVI_BEVÉTEL","v":{"v":0.7454545454545455,"d":"75%"}}]
[null,{"$f":"B5","v":0.7454545454545455}]
[null,"TELJES HAVI BEVÉTEL","TELJES HAVI KIADÁS","EGYENLEG"]
[null,{"$f":"C10","v":{"v":2750,"d":"2,750 HUF"}},{"$f":"'TELJES HAVI KIADÁS'!C4+'FÉLÉVI KIADÁSOK'!D4","v":{"v":2050,"d":"2,050 HUF"}},{"$f":"TELJES_HAVI_BEVÉTEL-TELJES_HAVI_KIADÁS","v":{"v":700,"d":"700 HUF"}}]
[null,"Félév hónapjai",4]
[null,"HAVI BEVÉTEL",{"$f":"SUM(HaviBevétel[ÖSSZEG])","v":{"v":2750,"d":"2,750 HUF"}}]
[null,"TÉTEL","ÖSSZEG"]
[null,"Állandó bevétel",{"v":1500,"d":"1,500 HUF"}]
[null,"Pénzügyi támogatás",{"v":500,"d":"500 HUF"}]
[null,"Hitelek",{"v":500,"d":"500 HUF"}]
[null,"Egyéb bevétel",{"v":250,"d":"250 HUF"}]

{"sheet":"TELJES HAVI KIADÁS","index":3,"n_rows":15,"n_cols":3,"rows_kept":15}
[null,{"$f":"Egyetem","v":"EGYETEMI"}]
[null,"KÖLTSÉGVETÉS-NYILVÁNTARTÁS"]
[null,"Havi kiadások",{"$f":"Év","v":"ÉV"}]
[null,"HAVI KIADÁSOK",{"$f":"SUM(HaviKiadások[ÖSSZEG])","v":{"v":1675,"d":"1,675 HUF"}}]
[null,"TÉTEL","ÖSSZEG"]
[null,"Bérleti díj",{"v":300,"d":"300 HUF"}]
[null,"Közművek",{"v":50,"d":"50 HUF"}]
[null,"Mobiltelefon",{"v":75,"d":"75 HUF"}]
[null,"Élelmiszer",{"v":250,"d":"250 HUF"}]
[null,"Autó költsége",{"v":50,"d":"50 HUF"}]
[null,"Diákhitel",{"v":500,"d":"500 HUF"}]
[null,"Hitelkártyák",{"v":275,"d":"275 HUF"}]
[null,"Biztosítás",{"v":125,"d":"125 HUF"}]
[null,"Szórakozás",{"v":50,"d":"50 HUF"}]
[null,"Egyéb",{"v":0,"d":"0 HUF"}]

{"sheet":"FÉLÉVI KIADÁSOK","index":4,"n_rows":11,"n_cols":4,"rows_kept":11}
[null,{"$f":"Egyetem","v":"EGYETEMI"}]
[null,"KÖLTSÉGVETÉS-NYILVÁNTARTÁS"]
[null,"Félévi kiadások",{"$f":"Év","v":"ÉV"}]
[null,"FÉLÉVI KIADÁSOK (összesn/hó)",{"$f":"SUM(FéléviKiadások[ÖSSZEG])","v":{"v":1500,"d":"1,500 HUF"}},{"$f":"SUM(FéléviKiadások[HAVI])","v":{"v":375,"d":"375 HUF"}}]
[null,"TÉTEL","ÖSSZEG","HAVI"]
[null,"Tandíj",{"v":750,"d":"750 HUF"},{"$f":"FéléviKiadások[[#This Row],[ÖSSZEG]]/Hónapok_a_félévben","v":{"v":187.5,"d":"188 HUF"}}]
[null,"Labordíjak",{"v":250,"d":"250 HUF"},{"$f":"FéléviKiadások[[#This Row],[ÖSSZEG]]/Hónapok_a_félévben","v":{"v":62.5,"d":"63 HUF"}}]
[null,"Könyvek",{"v":500,"d":"500 HUF"},{"$f":"FéléviKiadások[[#This Row],[ÖSSZEG]]/Hónapok_a_félévben","v":{"v":125,"d":"125 HUF"}}]
[null,"Befizetések",{"v":0,"d":"0 HUF"},{"$f":"FéléviKiadások[[#This Row],[ÖSSZEG]]/Hónapok_a_félévben","v":{"v":0,"d":"0 HUF"}}]
[null,"Közlekedés",{"v":0,"d":"0 HUF"},{"$f":"FéléviKiadások[[#This Row],[ÖSSZEG]]/Hónapok_a_félévben","v":{"v":0,"d":"0 HUF"}}]
[null,"Egyéb díjak",{"v":0,"d":"0 HUF"},{"$f":"FéléviKiadások[[#This Row],[ÖSSZEG]]/Hónapok_a_félévben","v":{"v":0,"d":"0 HUF"}}]

{"sheet":"KÖNYVEK","index":5,"n_rows":7,"n_cols":7,"rows_kept":7}
[null,{"$f":"Egyetem","v":"EGYETEMI"}]
[null,"KÖNYVNYILVÁNTARTÁS"]
[null,"Könyvek listája"]
[null,"CÍM","SZERZŐ","KURZUS","HOL LEHET MEGVENNI?","ISBN-szám","MEGJEGYZÉSEK"]
[null,"Könyv címe","Szerző","Kurzus","Helyszín","Szám"]
[null,"Könyv címe","Szerző","Kurzus","Helyszín","Szám"]
[null,"Könyv címe","Szerző","Kurzus","Helyszín","Szám"]